[Event "Vezerkepzo GM November 2021"]
[Site "Budapest"]
[Date "2021.11.18"]
[Round "1.3"]
[White "Murphy, Conor E"]
[Black "Nitish Belurkar"]
[Result "0-1"]
[ECO "E71"]
[WhiteElo "2421"]
[BlackElo "2362"]
[Annotator "NA"]
[PlyCount "132"]
[EventDate "2021.11.20"]
[EventType "tourn"]
[EventRounds "9"]
[EventCountry "HUN"]
[SourceTitle "playchess.com"]
[Source "ChessBase"]
[SourceQuality "1"]
[TimeControl "40/5400+30:1800+30"]

1. d4 Nf6 2. c4 g6 3. Nc3 Bg7 4. e4 d6 5. h3 O-O 6. Be3 e5 7. d5 a5 8. g4 Na6 9. Nge2 c6 10. Ng3 cxd5 11. cxd5 Bd7 12. Be2 Nc5 13. h4 a4 14. f3 b5 15. Qd2 Qa5 16. h5 Rfc8 17. Bh6 a3 18. Bxg7 axb2 19. Rb1 Kxg7 20. Rxb2 Nd3+ 21. Bxd3 Rxc3 22. O-O Qb6+ 23. Kh1 Qd4 24. Rb3 Ra3 25. Qxc3 Qxc3 26. Rxc3 Rxc3 27. Rd1 gxh5 28. g5 Ne8 29. Ne2 Ra3 30. f4 Bg4 31. Bxb5 Nc7 32. Bc4 Re3 33. fxe5 Ne8 34. Rd2 Rxe4 35. Bb5 Nc7 36. Nc3 Rxe5 37. Bc6 Re3 38. Na4 Kg6 39. Nb6 Rc3 40. Rf2 Bf3+ 41. Kh2 Kxg5 42. Nc8 Kg4 43. Nxd6 Rc1 44. Rxf3 Kxf3 45. Nxf7 Kf4 46. a4 Rc5 47. Nd8 Ke5 48. Nf7+ Kf4 49. Nd8 Ke5 50. Nf7+ Kd4 51. Ng5 h6 52. Nf3+ Ke3 53. Nh4 Nxd5 54. Nf5+ Kf4 55. Nd4 Ke5 56. Nf3+ Ke4 57. Nd2+ Kf4 58. Bb7 Ne3 59. Ne4 Rc2+ 60. Kg1 Ng4 61. a5 h4 62. Nd6 h3 63. Kf1 h2 64. a6 Ra2 65. Nb5 Ne3+ 66. Ke1 Ng2+ 0-1

[Event "Vezerkepzo GM November 2021"]
[Site "Budapest"]
[Date "2021.11.18"]
[Round "1.4"]
[White "Chakravarthi Reddy, M."]
[Black "Prraneeth Vuppala"]
[Result "1-0"]
[ECO "A28"]
[WhiteElo "2332"]
[BlackElo "2275"]
[Annotator "NA"]
[PlyCount "89"]
[EventDate "2021.11.20"]
[EventType "tourn"]
[EventRounds "9"]
[EventCountry "HUN"]
[SourceTitle "playchess.com"]
[Source "ChessBase"]
[SourceQuality "1"]
[TimeControl "40/5400+30:1800+30"]

1. c4 e5 2. Nc3 Nf6 3. Nf3 Nc6 4. e3 Bb4 5. Qc2 Bxc3 6. Qxc3 Qe7 7. a3 d5 8. cxd5 Nxd5 9. Qc2 e4 10. Ng1 O-O 11. b4 f5 12. Bc4 Be6 13. Bb2 Kh8 14. Nh3 a6 15. O-O Rad8 16. f3 Bg8 17. fxe4 fxe4 18. Nf2 Rde8 19. Ng4 Qe6 20. Bxd5 Qxd5 21. Qc3 Qg5 22. Nf6 Re6 23. h4 Qg6 24. Nh5 Rxf1+ 25. Rxf1 Re7 26. Qc5 b6 27. Qg5 Rf7 28. Rf4 Ne7 29. Rxe4 Nf5 30. Rg4 Qxg5 31. hxg5 Rd7 32. Rf4 Nd6 33. Rf8 Nc4 34. Bc3 Nd6 35. d3 Re7 36. e4 c5 37. bxc5 bxc5 38. a4 c4 39. Nxg7 Rxg7 40. e5 Nf5 41. e6 cxd3 42. Rxf5 d2 43. Rd5 Bxe6 44. Rd8+ Bg8 45. Rxd2 1-0

[Event "Vezerkepzo GM November 2021"]
[Site "Budapest"]
[Date "2021.11.18"]
[Round "1.5"]
[White "Souhardo Basak"]
[Black "Manish Anto Cristiano F"]
[Result "1-0"]
[ECO "B92"]
[WhiteElo "2382"]
[BlackElo "2371"]
[Annotator "NA"]
[PlyCount "57"]
[EventDate "2021.11.20"]
[EventType "tourn"]
[EventRounds "9"]
[EventCountry "HUN"]
[SourceTitle "playchess.com"]
[Source "ChessBase"]
[SourceQuality "1"]
[TimeControl "40/5400+30:1800+30"]

1. e4 c5 2. Nf3 d6 3. d4 cxd4 4. Nxd4 Nf6 5. Nc3 a6 6. Be2 e5 7. Nb3 Be7 8. Be3 Be6 9. Nd5 Nbd7 10. Qd3 Bxd5 11. exd5 O-O 12. g4 Nc5 13. Nxc5 dxc5 14. O-O-O e4 15. Qd2 Ne8 16. h4 Rc8 17. g5 Nd6 18. h5 f5 19. Rdg1 Qc7 20. Bf4 Rfd8 21. g6 h6 22. Bxh6 gxh6 23. Qxh6 Bf6 24. g7 Qe7 25. Qh8+ Kf7 26. Qh7 Bxb2+ 27. Kb1 Kf6 28. Rg6+ Ke5 29. g8=Q 1-0

[Event "Vezerkepzo GM November 2021"]
[Site "Budapest"]
[Date "2021.11.19"]
[Round "2.1"]
[White "Pap, Misa"]
[Black "Manish Anto Cristiano F"]
[Result "1-0"]
[ECO "B22"]
[WhiteElo "2377"]
[BlackElo "2371"]
[Annotator "NA"]
[PlyCount "97"]
[EventDate "2021.11.20"]
[EventType "tourn"]
[EventRounds "9"]
[EventCountry "HUN"]
[SourceTitle "playchess.com"]
[Source "ChessBase"]
[SourceQuality "1"]
[TimeControl "40/5400+30:1800+30"]

1. e4 c5 2. c3 Nf6 3. e5 Nd5 4. Nf3 Nc6 5. Bc4 Nb6 6. Bb3 d6 7. exd6 Qxd6 8. O-O Bf5 9. d4 e6 10. Be3 c4 11. Bc2 Bg6 12. Nbd2 Rc8 13. Re1 Be7 14. Ne4 Qc7 15. Bg5 Nd5 16. Bxe7 Qxe7 17. Qe2 Bh5 18. Ng3 Bxf3 19. Qxf3 Qd7 20. Nh5 g6 21. Be4 Nce7 22. Ng7+ Kf8 23. Nxe6+ Qxe6 24. Bxd5 Qxd5 25. Qf6 Rg8 26. Qxe7+ Kg7 27. Qe5+ Qxe5 28. Rxe5 Rc6 29. Rae1 Ra6 30. Rb5 Rxa2 31. Rxb7 Re8 32. Kf1 Rxe1+ 33. Kxe1 Kf6 34. Kd2 Ke6 35. Rb5 h5 36. h4 Kd6 37. g3 Ke6 38. Ke3 Ra1 39. Rc5 Rb1 40. Rxc4 Rxb2 41. Ra4 Rb3 42. Ra6+ Kf5 43. Kd3 Rb7 44. f3 f6 45. Ra5+ Ke6 46. c4 Rc7 47. Ra6+ Ke7 48. d5 Rb7 49. Kd4 1-0

[Event "Vezerkepzo GM November 2021"]
[Site "Budapest"]
[Date "2021.11.19"]
[Round "2.2"]
[White "Prraneeth Vuppala"]
[Black "Souhardo Basak"]
[Result "1-0"]
[ECO "B51"]
[WhiteElo "2275"]
[BlackElo "2382"]
[Annotator "NA"]
[PlyCount "59"]
[EventDate "2021.11.20"]
[EventType "tourn"]
[EventRounds "9"]
[EventCountry "HUN"]
[SourceTitle "playchess.com"]
[Source "ChessBase"]
[SourceQuality "1"]
[TimeControl "40/5400+30:1800+30"]

1. e4 c5 2. Nf3 d6 3. Bb5+ Nd7 4. a4 Ngf6 5. Nc3 a6 6. Be2 g6 7. a5 Bg7 8. O-O O-O 9. d3 Nb8 10. e5 Ng4 11. exd6 Qxd6 12. h3 Nf6 13. Nd2 Qc7 14. Nc4 Nc6 15. Na4 Nd4 16. Ncb6 Rb8 17. c3 Ne6 18. Nxc8 Rbxc8 19. Nb6 Rcd8 20. Bf3 Nd7 21. Nxd7 Rxd7 22. Qe2 Rfd8 23. Rd1 Nf8 24. Ra4 e5 25. Bg5 f6 26. Be3 Ne6 27. b4 cxb4 28. Qa2 Re8 29. Rxb4 Qxc3 30. Rc4 1-0

[Event "Vezerkepzo GM November 2021"]
[Site "Budapest"]
[Date "2021.11.19"]
[Round "2.3"]
[White "Nitish Belurkar"]
[Black "Chakravarthi Reddy, M."]
[Result "1-0"]
[ECO "D02"]
[WhiteElo "2362"]
[BlackElo "2332"]
[Annotator "NA"]
[PlyCount "59"]
[EventDate "2021.11.20"]
[EventType "tourn"]
[EventRounds "9"]
[EventCountry "HUN"]
[SourceTitle "playchess.com"]
[Source "ChessBase"]
[SourceQuality "1"]
[TimeControl "40/5400+30:1800+30"]

1. d4 d5 2. Nf3 Nf6 3. Bf4 c5 4. e3 Nc6 5. c3 Qb6 6. b3 Bf5 7. Bd3 Bg6 8. dxc5 Qxc5 9. b4 Qb6 10. a4 a5 11. b5 Na7 12. O-O e6 13. c4 dxc4 14. Bxg6 hxg6 15. Nbd2 Rc8 16. Ne5 Bb4 17. Ndxc4 Qc5 18. e4 Rd8 19. Qf3 Nc8 20. Nxf7 Kxf7 21. Ne5+ Kg8 22. Rac1 Qe7 23. Nxg6 Qf7 24. Nxh8 Kxh8 25. Bg5 Rf8 26. e5 Qh5 27. Qxh5+ Nxh5 28. g4 Nb6 29. gxh5 Nxa4 30. Rc7 1-0

[Event "Vezerkepzo GM November 2021"]
[Site "Budapest"]
[Date "2021.11.19"]
[Round "2.5"]
[White "Kovalev, Andrei"]
[Black "Juhasz, Agoston"]
[Result "1/2-1/2"]
[ECO "B15"]
[WhiteElo "2501"]
[BlackElo "2379"]
[Annotator "ChessBase"]
[PlyCount "29"]
[EventDate "2021.11.20"]
[EventType "tourn"]
[EventRounds "9"]
[EventCountry "HUN"]
[SourceTitle "playchess.com"]
[Source "ChessBase"]
[SourceQuality "1"]
[TimeControl "40/5400+30:1800+30"]

1. e4 c6 2. d4 d5 3. Nd2 dxe4 4. Nxe4 Nf6 5. Nxf6+ exf6 6. Bc4 Bd6 7. Qe2+ Be7 8. Nf3 O-O 9. h3 Re8 10. O-O Bd6 11. Be3 Nd7 12. Bd3 Nf8 13. c4 Be6 14. Nh4 g6 15. f4 1/2-1/2

[Event "Vezerkepzo GM November 2021"]
[Site "Budapest"]
[Date "2021.11.20"]
[Round "3.1"]
[White "Juhasz, Agoston"]
[Black "Pap, Misa"]
[Result "0-1"]
[ECO "C55"]
[WhiteElo "2379"]
[BlackElo "2377"]
[Annotator "NA"]
[PlyCount "86"]
[EventDate "2021.11.20"]
[EventType "tourn"]
[EventCountry "HUN"]
[SourceTitle "playchess.com"]
[Source "ChessBase"]
[SourceQuality "1"]
[TimeControl "40/5400+30:1800+30"]

1. e4 {[%emt 0:02:06]} e5 {[%emt 0:00:21]} 2. Nf3 {[%emt 0:00:09]} Nc6 {[%emt 0:00:39]} 3. Bc4 {[%emt 0:00:10]} Nf6 {[%emt 0:00:08]} 4. d3 {[%emt 0:00:14]} Be7 {[%emt 0:00:21]} 5. O-O {[%emt 0:00:29]} O-O {[%emt 0:00:14]} 6. Re1 {[%emt 0:00:09]} d6 {[%emt 0:00:08]} 7. a4 {[%emt 0:00:27]} Be6 {[%emt 0:08:27]} 8. a5 {[%emt 0:02:27]} a6 {[%emt 0:02:29]} 9. c3 {[%emt 0:04:31]} Qd7 {[%emt 0:19:11]} 10. Nbd2 {[%emt 0:05:14]} Rfe8 {[%emt 0:03:59]} 11. Bxe6 {[%emt 0:12:55]} fxe6 {[%emt 0:03:09]} 12. Nc4 {[%emt 0:06:49]} Bf8 {[%emt 0:06:40]} 13. Bg5 {[%emt 0:07:33]} Qf7 {[%emt 0:02:08]} 14. d4 {[%emt 0:07:45]} exd4 {[%emt 0:02:35]} 15. Nxd4 {[%emt 0:01:15]} e5 {[%emt 0:17:29]} 16. Nxc6 {[%emt 0:01:17]} bxc6 {[%emt 0:00:08]} 17. Qd3 {[%emt 0:06:42]} Ng4 {[%emt 0:07:03]} 18. f3 {[%emt 0:10:54]} d5 {[%emt 0:00:27]} 19. Ne3 {[%emt 0:01:15]} Nxh2 {[%emt 0:11:25]} 20. exd5 {[%emt 0:10:12]} Qh5 {[%emt 0:00:44]} 21. Qe4 {[%emt 0:06:36]} Nxf3+ {[%emt 0:04:31]} 22. Qxf3 {[%emt 0:00:05]} Qxg5 {[%emt 0:00:04]} 23. Ra4 {[%emt 0:01:52]} Bc5 {[%emt 0:03:23]} 24. Rg4 {[%emt 0:02:00]} e4 {[%emt 0:00:40]} 25. Qf8+ {[%emt 0:07:32]} Kxf8 {[%emt 0:01:59]} 26. Rxg5 {[%emt 0:00:02]} Rab8 {[%emt 0:01:45]} 27. dxc6 {[%emt 0:01:44]} Bxe3+ {[%emt 0:00:41]} 28. Rxe3 {[%emt 0:00:02]} Rxb2 {[%emt 0:00:04]} 29. Rf5+ {[%emt 0:00:22]} Kg8 {[%emt 0:00:11]} 30. Rd5 {[%emt 0:01:19]} Rb1+ {[%emt 0:01:15]} 31. Kf2 {[%emt 0:00:27]} Rb5 {[%emt 0:01:07]} 32. c4 {[%emt 0:01:15]} Rxd5 {[%emt 0:00:52]} 33. cxd5 {[%emt 0:00:01]} Kf7 {[%emt 0:00:24]} 34. Kg3 {[%emt 0:00:46]} Rd8 {[%emt 0:01:29]} 35. Rb3 {[%emt 0:00:36]} Ke7 {[%emt 0:00:34]} 36. Rb7 {[%emt 0:00:31]} Kd6 {[%emt 0:00:30]} 37. Kf4 {[%emt 0:00:14]} Re8 {[%emt 0:00:00]} 38. Ke3 {[%emt 0:00:02]} Re5 {[%emt 0:00:13]} 39. Ra7 {[%emt 0:00:52]} Rxd5 {[%emt 0:00:11]} 40. Rxa6 {[%emt 0:00:00]} Rg5 {[%emt 0:00:00]} 41. Ra8 {[%emt 0:10:35]} Kxc6 {[%emt 0:00:42]} 42. Kxe4 {[%emt 0:00:57]} Kb7 {[%emt 0:00:35]} 43. Rh8 {[%emt 0:03:56]} h6 {[%emt 0:00:06]} 0-1

[Event "Vezerkepzo GM November 2021"]
[Site "Budapest"]
[Date "2021.11.20"]
[Round "3.4"]
[White "Souhardo Basak"]
[Black "Nitish Belurkar"]
[Result "1/2-1/2"]
[ECO "C07"]
[WhiteElo "2382"]
[BlackElo "2362"]
[Annotator "NA"]
[PlyCount "40"]
[EventDate "2021.11.20"]
[EventType "tourn"]
[EventCountry "HUN"]
[SourceTitle "playchess.com"]
[Source "ChessBase"]
[SourceQuality "1"]
[TimeControl "40/5400+30:1800+30"]

1. e4 {[%emt 0:00:07]} e6 {[%emt 0:00:07]} 2. d4 {[%emt 0:00:35]} d5 {[%emt 0:00:05]} 3. Nd2 {[%emt 0:00:06]} c5 {[%emt 0:00:04]} 4. exd5 {[%emt 0:00:10]} Qxd5 {[%emt 0:00:05]} 5. dxc5 {[%emt 0:00:14]} Bxc5 {[%emt 0:00:07]} 6. Ngf3 {[%emt 0:00:07]} Nf6 {[%emt 0:00:04]} 7. Bc4 {[%emt 0:00:07]} Qc6 {[%emt 0:00:05]} 8. Qe2 {[%emt 0:00:10]} O-O {[%emt 0:00:07]} 9. Nb3 {[%emt 0:01:37]} Bd6 {[%emt 0:02:24]} 10. Nbd4 {[%emt 0:03:00]} Qb6 {[%emt 0:01:48]} 11. Nb5 {[%emt 0:08:55]} Bc5 {[%emt 0:02:08]} 12. O-O {[%emt 0:05:32]} Bd7 {[%emt 0:04:16]} 13. a4 {[%emt 0:17:02]} Nc6 {[%emt 0:11:39]} 14. Bf4 {[%emt 0:04:57]} e5 {[%emt 0:11:46]} 15. Bxe5 {[%emt 0:14:24]} Nxe5 {[%emt 0:03:28]} 16. Nxe5 {[%emt 0:00:30]} Bxb5 {[%emt 0:03:28]} 17. Bxb5 {[%emt 0:00:50]} a6 {[%emt 0:00:36]} 18. Nd7 {[%emt 0:02:12]} Nxd7 {[%emt 0:00:14]} 19. Bxd7 {[%emt 0:00:02]} Rad8 {[%emt 0:01:00]} 20. Rfd1 {[%emt 0:07:02]} Bd4 {[%emt 0:08:46]} 1/2-1/2

[Event "Vezerkepzo GM November 2021"]
[Site "Budapest"]
[Date "2021.11.20"]
[Round "3.5"]
[White "Manish Anto Cristiano F"]
[Black "Prraneeth Vuppala"]
[Result "0-1"]
[ECO "D31"]
[WhiteElo "2371"]
[BlackElo "2275"]
[Annotator "NA"]
[PlyCount "106"]
[EventDate "2021.11.20"]
[EventType "tourn"]
[EventCountry "HUN"]
[SourceTitle "playchess.com"]
[Source "ChessBase"]
[SourceQuality "1"]
[TimeControl "40/5400+30:1800+30"]

1. d4 {[%emt 0:06:21]} d5 {[%emt 0:01:51]} 2. c4 {[%emt 0:00:11]} e6 {[%emt 0:00:05]} 3. Nc3 {[%emt 0:00:09]} a6 {[%emt 0:00:08]} 4. cxd5 {[%emt 0:00:52]} exd5 {[%emt 0:00:08]} 5. Nf3 {[%emt 0:00:07]} c6 {[%emt 0:00:13]} 6. Bf4 {[%emt 0:01:11]} Bd6 {[%emt 0:00:31]} 7. Bxd6 {[%emt 0:01:37]} Qxd6 {[%emt 0:00:07]} 8. e4 {[%emt 0:01:08]} dxe4 {[%emt 0:17:39]} 9. Nxe4 {[%emt 0:00:21]} Qe7 {[%emt 0:01:12]} 10. Qe2 {[%emt 0:02:20]} Kf8 {[%emt 0:19:23]} 11. Qe3 {[%emt 0:22:25]} Nd7 {[%emt 0:05:28]} 12. Bd3 {[%emt 0:08:24]} Ngf6 {[%emt 0:02:13]} 13. O-O {[%emt 0:06:33]} Nxe4 {[%emt 0:01:42]} 14. Bxe4 {[%emt 0:00:11]} Nf6 {[%emt 0:00:07]} 15. Ne5 {[%emt 0:00:39]} Nxe4 {[%emt 0:01:57]} 16. Qxe4 {[%emt 0:00:11]} g6 {[%emt 0:00:57]} 17. Rfe1 {[%emt 0:02:20]} Kg7 {[%emt 0:00:59]} 18. d5 {[%emt 0:13:12]} cxd5 {[%emt 0:02:18]} 19. Qd4 {[%emt 0:02:11]} Qf6 {[%emt 0:01:32]} 20. Rac1 {[%emt 0:02:14]} Be6 {[%emt 0:23:01]} 21. Rc3 {[%emt 0:05:15]} h5 {[%emt 0:00:25]} 22. Rc7 {[%emt 0:01:35]} b5 {[%emt 0:02:07]} 23. h3 {[%emt 0:06:15]} Rhc8 {[%emt 0:04:17]} 24. Rb7 {[%emt 0:01:01]} Rc2 {[%emt 0:03:37]} 25. Nf3 {[%emt 0:00:49]} Rc4 {[%emt 0:00:41]} 26. Qd2 {[%emt 0:03:32]} Rac8 {[%emt 0:00:46]} 27. Ng5 {[%emt 0:01:12]} R8c7 {[%emt 0:00:35]} 28. Rb6 {[%emt 0:02:31]} R4c6 {[%emt 0:00:35]} 29. Qe3 {[%emt 0:04:02]} d4 {[%emt 0:04:57]} 30. Nxe6+ {[%emt 0:00:15]} fxe6 {[%emt 0:00:27]} 31. Qg3 {[%emt 0:00:22]} h4 {[%emt 0:01:23]} 32. Rxc6 {[%emt 0:01:28]} Rxc6 {[%emt 0:00:08]} 33. Qd3 {[%emt 0:01:47]} Qf4 {[%emt 0:02:44]} 34. g3 {[%emt 0:02:16]} Qd6 {[%emt 0:00:55]} 35. gxh4 {[%emt 0:00:31]} Qd5 {[%emt 0:00:52]} 36. a3 {[%emt 0:01:07]} e5 {[%emt 0:00:29]} 37. Kh2 {[%emt 0:01:10]} Rf6 {[%emt 0:00:55]} 38. Qg3 {[%emt 0:00:21]} e4 {[%emt 0:00:55]} 39. Rc1 {[%emt 0:00:49]} Qf5 {[%emt 0:00:27]} 40. Rc7+ {[%emt 0:00:00]} Kh6 {[%emt 0:00:00]} 41. Kh1 {[%emt 0:14:16]} e3 {[%emt 0:10:04]} 42. Qg5+ {[%emt 0:04:17]} Qxg5 {[%emt 0:00:07]} 43. hxg5+ {[%emt 0:00:04]} Kxg5 {[%emt 0:00:05]} 44. fxe3 {[%emt 0:00:08]} dxe3 {[%emt 0:00:04]} 45. Re7 {[%emt 0:00:21]} Kf4 {[%emt 0:00:40]} 46. Kg2 {[%emt 0:00:50]} Rc6 {[%emt 0:03:43]} 47. b3 {[%emt 0:00:34]} Rc2+ {[%emt 0:12:02]} 48. Kf1 {[%emt 0:00:26]} Ra2 {[%emt 0:00:12]} 49. Re6 {[%emt 0:00:51]} Rxa3 {[%emt 0:02:42]} 50. Rxg6 {[%emt 0:00:51]} a5 {[%emt 0:00:42]} 51. Ra6 {[%emt 0:00:44]} Rxb3 {[%emt 0:00:25]} 52. Rxa5 {[%emt 0:00:09]} Kf3 {[%emt 0:00:12]} 53. Ra1 {[%emt 0:00:18]} Rb2 {[%emt 0:01:04]} 0-1

[Event "Vezerkepzo GM November 2021"]
[Site "Budapest"]
[Date "2021.11.21"]
[Round "4.1"]
[White "Pap, Misa"]
[Black "Prraneeth Vuppala"]
[Result "0-1"]
[ECO "B22"]
[WhiteElo "2377"]
[BlackElo "2275"]
[Annotator "NA"]
[PlyCount "70"]
[EventDate "2021.11.20"]
[EventType "tourn"]
[EventCountry "HUN"]
[SourceTitle "playchess.com"]
[Source "ChessBase"]
[SourceQuality "1"]
[TimeControl "40/5400+30:1800+30"]

1. e4 {[%emt 0:01:59]} c5 {[%emt 0:00:10]} 2. c3 {[%emt 0:00:23]} Nf6 {[%emt 0:00:07]} 3. e5 {[%emt 0:00:07]} Nd5 {[%emt 0:00:05]} 4. Nf3 {[%emt 0:00:23]} d6 {[%emt 0:00:36]} 5. d4 {[%emt 0:03:53]} cxd4 {[%emt 0:00:12]} 6. cxd4 {[%emt 0:02:29]} Nc6 {[%emt 0:00:19]} 7. Bc4 {[%emt 0:00:02]} dxe5 {[%emt 0:00:21]} 8. dxe5 {[%emt 0:01:03]} Be6 {[%emt 0:00:29]} 9. O-O {[%emt 0:13:53]} g6 {[%emt 0:00:08]} 10. Ng5 {[%emt 0:03:21]} Bg7 {[%emt 0:00:18]} 11. Nxe6 {[%emt 0:00:32]} fxe6 {[%emt 0:00:06]} 12. Qe2 {[%emt 0:09:15]} O-O {[%emt 0:03:37]} 13. f4 {[%emt 0:08:48]} g5 {[%emt 0:17:37]} 14. g3 {[%emt 0:05:53]} gxf4 {[%emt 0:08:11]} 15. gxf4 {[%emt 0:00:02]} Qb6+ {[%emt 0:03:30]} 16. Kh1 {[%emt 0:00:40]} Qd4 {[%emt 0:01:17]} 17. Nc3 {[%emt 0:04:49]} Nxf4 {[%emt 0:02:56]} 18. Bxf4 {[%emt 0:02:41]} Rxf4 {[%emt 0:00:07]} 19. Rxf4 {[%emt 0:09:48]} Qxf4 {[%emt 0:00:08]} 20. Rf1 {[%emt 0:00:27]} Qxe5 {[%emt 0:02:59]} 21. Qg4 {[%emt 0:00:01]} Nd4 {[%emt 0:08:28]} 22. Qg2 {[%emt 0:10:23]} Rf8 {[%emt 0:24:43]} 23. Rxf8+ {[%emt 0:03:53]} Kxf8 {[%emt 0:00:05]} 24. Qxb7 {[%emt 0:00:06]} Nf5 {[%emt 0:06:31]} 25. Qxa7 {[%emt 0:06:22]} Qe1+ {[%emt 0:01:21]} 26. Kg2 {[%emt 0:00:01]} Bxc3 {[%emt 0:07:58]} 27. Qa8+ {[%emt 0:00:12]} Kg7 {[%emt 0:00:46]} 28. bxc3 {[%emt 0:00:08]} Ne3+ {[%emt 0:00:44]} 29. Kh3 {[%emt 0:00:14]} Nxc4 {[%emt 0:00:09]} 30. Qg2+ {[%emt 0:00:01]} Kh6 {[%emt 0:00:30]} 31. Qg4 {[%emt 0:00:02]} Qxc3+ {[%emt 0:01:02]} 32. Kh4 {[%emt 0:00:03]} Qf6+ {[%emt 0:00:13]} 33. Kh3 {[%emt 0:00:30]} Qf5 {[%emt 0:00:17]} 34. a4 {[%emt 0:00:01]} Qxg4+ {[%emt 0:00:26]} 35. Kxg4 {[%emt 0:00:00]} Kg6 {[%emt 0:00:07]} 0-1

[Event "Vezerkepzo GM November 2021"]
[Site "Budapest"]
[Date "2021.11.21"]
[Round "4.2"]
[White "Nitish Belurkar"]
[Black "Manish Anto Cristiano F"]
[Result "1-0"]
[ECO "B92"]
[WhiteElo "2362"]
[BlackElo "2371"]
[Annotator "NA"]
[PlyCount "87"]
[EventDate "2021.11.20"]
[EventType "tourn"]
[EventCountry "HUN"]
[SourceTitle "playchess.com"]
[Source "ChessBase"]
[SourceQuality "1"]
[TimeControl "40/5400+30:1800+30"]

1. e4 {[%emt 0:00:06]} c5 {[%emt 0:09:46]} 2. Nf3 {[%emt 0:00:08]} d6 {[%emt 0:00:35]} 3. d4 {[%emt 0:00:06]} cxd4 {[%emt 0:00:59]} 4. Nxd4 {[%emt 0:00:06]} Nf6 {[%emt 0:00:14]} 5. Nc3 {[%emt 0:00:07]} a6 {[%emt 0:00:06]} 6. Be2 {[%emt 0:00:07]} e5 {[%emt 0:00:18]} 7. Nb3 {[%emt 0:00:05]} Be7 {[%emt 0:00:18]} 8. O-O {[%emt 0:00:07]} O-O {[%emt 0:00:33]} 9. Re1 {[%emt 0:00:05]} Be6 {[%emt 0:00:58]} 10. Bf3 {[%emt 0:00:28]} Qc7 {[%emt 0:03:01]} 11. a4 {[%emt 0:01:14]} Rc8 {[%emt 0:02:10]} 12. Be3 {[%emt 0:01:19]} Nbd7 {[%emt 0:00:25]} 13. a5 {[%emt 0:00:19]} Rab8 {[%emt 0:04:21]} 14. h3 {[%emt 0:05:32]} h6 {[%emt 0:00:23]} 15. Nd2 {[%emt 0:17:17]} Bd8 {[%emt 0:03:34]} 16. Nf1 {[%emt 0:03:46]} b5 {[%emt 0:01:41]} 17. axb6 {[%emt 0:03:32]} Nxb6 {[%emt 0:00:22]} 18. Nd2 {[%emt 0:08:08]} Nc4 {[%emt 0:05:43]} 19. Nxc4 {[%emt 0:07:38]} Bxc4 {[%emt 0:00:56]} 20. b3 {[%emt 0:00:39]} Be6 {[%emt 0:05:47]} 21. Bd2 {[%emt 0:00:18]} Qc6 {[%emt 0:06:58]} 22. Ra2 {[%emt 0:09:29]} Bb6 {[%emt 0:05:45]} 23. Na4 {[%emt 0:02:02]} Bd4 {[%emt 0:04:52]} 24. Be3 {[%emt 0:01:17]} Rb4 {[%emt 0:02:57]} 25. c4 {[%emt 0:04:39]} Bxe3 {[%emt 0:02:51]} 26. Rxe3 {[%emt 0:00:19]} Rcb8 {[%emt 0:02:00]} 27. Kh2 {[%emt 0:03:47]} Kf8 {[%emt 0:15:05]} 28. Rd3 {[%emt 0:05:19]} Ke7 {[%emt 0:03:14]} 29. Rad2 {[%emt 0:04:22]} Ne8 {[%emt 0:01:59]} 30. Nc3 {[%emt 0:06:14]} Qb6 {[%emt 0:05:32]} 31. Bg4 {[%emt 0:01:14]} Rxb3 {[%emt 0:06:27]} 32. Bxe6 {[%emt 0:00:36]} fxe6 {[%emt 0:00:09]} 33. c5 {[%emt 0:01:31]} Qxc5 {[%emt 0:01:36]} 34. Nd5+ {[%emt 0:00:13]} exd5 {[%emt 0:00:05]} 35. Rxb3 {[%emt 0:00:04]} Rxb3 {[%emt 0:00:12]} 36. Qxb3 {[%emt 0:00:11]} d4 {[%emt 0:00:34]} 37. Qb7+ {[%emt 0:02:01]} Nc7 {[%emt 0:01:45]} 38. Rd3 {[%emt 0:00:59]} Qc2 {[%emt 0:01:21]} 39. Rg3 {[%emt 0:05:01]} g5 {[%emt 0:01:14]} 40. Rf3 {[%emt 0:00:00]} d3 {[%emt 0:00:00]} 41. Qb8 {[%emt 0:08:26]} Ne6 {[%emt 0:12:08]} 42. Rf5 {[%emt 0:03:40]} Qa4 {[%emt 0:07:53]} 43. Qb7+ {[%emt 0:00:47]} Kd8 {[%emt 0:00:27]} 44. Rf7 {[%emt 0:00:19]} 1-0